[Event "Early-Titled-Tuesday-Blitz-January-23-2024"]
[Site "Chess.com"]
[Date "2024.01.23"]
[Round "6"]
[White "SmirnovTimofey2000"]
[Black "GrotBchess"]
[Result "0-1"]
[WhiteElo "1961"]
[BlackElo "2307"]
[TimeControl "180+1"]
[EndTime "9:05:17 PST"]
[Termination "GrotBchess won by resignation"]

1. e4 {[%clk 0:03:00.9]} 1... c5 {[%clk 0:02:59.7]} 2. c3 {[%clk 0:02:58]} 2...
e6 {[%clk 0:03:00.1]} 3. d4 {[%clk 0:02:57.7]} 3... Nf6 {[%clk 0:03:00.3]} 4. e5
{[%clk 0:02:49.2]} 4... Nd5 {[%clk 0:03:00.2]} 5. Nf3 {[%clk 0:02:27.6]} 5...
cxd4 {[%clk 0:02:59.3]} 6. cxd4 {[%clk 0:02:27.5]} 6... Nc6 {[%clk 0:02:58.9]}
7. Nc3 {[%clk 0:02:24.8]} 7... d6 {[%clk 0:02:58.8]} 8. Bc4 {[%clk 0:02:11.8]}
8... Nxc3 {[%clk 0:02:57.8]} 9. bxc3 {[%clk 0:02:11.5]} 9... dxe5 {[%clk
0:02:57.9]} 10. d5 {[%clk 0:01:58.9]} 10... exd5 {[%clk 0:02:43]} 11. Bxd5
{[%clk 0:01:58.7]} 11... Be7 {[%clk 0:02:10.5]} 12. Bxc6+ {[%clk 0:01:50.9]}
12... bxc6 {[%clk 0:02:09.4]} 13. Qxd8+ {[%clk 0:01:50.5]} 13... Bxd8 {[%clk
0:02:09.5]} 14. Nxe5 {[%clk 0:01:48.9]} 14... Bf6 {[%clk 0:02:09.6]} 15. f4
{[%clk 0:01:41.9]} 15... O-O {[%clk 0:02:08.7]} 16. O-O {[%clk 0:01:40.5]} 16...
Ba6 {[%clk 0:02:00.2]} 17. Re1 {[%clk 0:01:38.1]} 17... c5 {[%clk 0:01:57.2]}
18. Nd7 {[%clk 0:01:31]} 18... Bxc3 {[%clk 0:01:49]} 19. Be3 {[%clk 0:01:23.5]}
19... Bxa1 {[%clk 0:01:40.4]} 20. Nxf8 {[%clk 0:01:23.2]} 20... Bd4 {[%clk
0:01:32.4]} 21. Bxd4 {[%clk 0:01:20.6]} 21... cxd4 {[%clk 0:01:33.3]} 22. Nd7
{[%clk 0:01:17.1]} 22... h6 {[%clk 0:01:27.9]} 23. Rd1 {[%clk 0:01:05.9]} 23...
d3 {[%clk 0:01:24.1]} 24. Nc5 {[%clk 0:01:06.2]} 24... Bc4 {[%clk 0:01:23.9]}
25. Nxd3 {[%clk 0:00:56.4]} 25... Rd8 {[%clk 0:01:22.8]} 26. Nf2 {[%clk
0:00:40.5]} 26... Rxd1+ {[%clk 0:01:21.2]} 27. Nxd1 {[%clk 0:00:41.4]} 27...
Bxa2 {[%clk 0:01:21.4]} 28. Kf2 {[%clk 0:00:41.8]} 28... Kf8 {[%clk 0:01:18.8]}
29. Ke3 {[%clk 0:00:40.1]} 29... Ke7 {[%clk 0:01:18.9]} 30. g4 {[%clk
0:00:36.8]} 30... Be6 {[%clk 0:01:12.4]} 31. f5 {[%clk 0:00:32.8]} 31... Bb3
{[%clk 0:01:09.5]} 32. Nc3 {[%clk 0:00:32.3]} 32... a5 {[%clk 0:01:09.1]} 33.
Kd4 {[%clk 0:00:28.5]} 33... a4 {[%clk 0:01:08.7]} 34. Nb1 {[%clk 0:00:21]}
34... Kf6 {[%clk 0:01:06.3]} 35. Ke4 {[%clk 0:00:16.1]} 35... Bc2+ {[%clk
0:01:02.7]} 0-1

[Event "Early-Titled-Tuesday-Blitz-January-23-2024"]
[Site "Chess.com"]
[Date "2024.01.23"]
[Round "6"]
[White "Adar_07"]
[Black "colegiodemadrid"]
[Result "0-1"]
[WhiteElo "2633"]
[BlackElo "2492"]
[TimeControl "180+1"]
[EndTime "9:05:21 PST"]
[Termination "colegiodemadrid won by resignation"]

1. Nf3 {[%clk 0:03:00.9]} 1... Nf6 {[%clk 0:02:59]} 2. g3 {[%clk 0:03:01.8]}
2... e6 {[%clk 0:02:59.1]} 3. Bg2 {[%clk 0:03:01.9]} 3... d5 {[%clk 0:02:59.6]}
4. O-O {[%clk 0:03:02.8]} 4... Be7 {[%clk 0:02:59.6]} 5. c4 {[%clk 0:03:03.7]}
5... dxc4 {[%clk 0:02:58.8]} 6. Qa4+ {[%clk 0:02:58]} 6... Nbd7 {[%clk
0:02:57.8]} 7. Qxc4 {[%clk 0:02:58.9]} 7... a6 {[%clk 0:02:57]} 8. d4 {[%clk
0:02:57.3]} 8... b5 {[%clk 0:02:55.6]} 9. Qc2 {[%clk 0:02:39.7]} 9... Bb7 {[%clk
0:02:54.7]} 10. a4 {[%clk 0:02:33.6]} 10... b4 {[%clk 0:02:43.8]} 11. Bf4 {[%clk
0:02:33.5]} 11... c5 {[%clk 0:02:38.7]} 12. Nbd2 {[%clk 0:02:31]} 12... Rc8
{[%clk 0:02:38.7]} 13. dxc5 {[%clk 0:02:29.9]} 13... Nxc5 {[%clk 0:02:38.3]} 14.
Rfd1 {[%clk 0:02:30]} 14... O-O {[%clk 0:02:19.4]} 15. Nc4 {[%clk 0:02:21]}
15... Ncd7 {[%clk 0:02:09.3]} 16. b3 {[%clk 0:02:17.8]} 16... Bd5 {[%clk
0:02:07.5]} 17. Nfd2 {[%clk 0:02:15.2]} 17... Bxg2 {[%clk 0:02:05.1]} 18. Kxg2
{[%clk 0:02:16.1]} 18... Rc5 {[%clk 0:02:00.9]} 19. Be3 {[%clk 0:02:15.4]} 19...
Qa8+ {[%clk 0:02:00.3]} 20. f3 {[%clk 0:02:14.7]} 20... Rcc8 {[%clk 0:01:56]}
21. Ne4 {[%clk 0:02:12]} 21... Nd5 {[%clk 0:01:53.3]} 22. Bf2 {[%clk 0:02:09.7]}
22... Ne5 {[%clk 0:01:48.6]} 23. Rac1 {[%clk 0:01:53.2]} 23... f5 {[%clk
0:01:46]} 24. Ned2 {[%clk 0:01:49.6]} 24... Ng4 {[%clk 0:01:26.5]} 25. e4 {[%clk
0:01:40.1]} 25... Nde3+ {[%clk 0:01:23.6]} 26. Nxe3 {[%clk 0:01:38.5]} 26...
Nxe3+ {[%clk 0:01:23.2]} 27. Bxe3 {[%clk 0:01:39.4]} 27... Rxc2 {[%clk
0:01:22.9]} 28. Rxc2 {[%clk 0:01:40.3]} 28... Rc8 {[%clk 0:01:13.6]} 29. Rdc1
{[%clk 0:01:39.3]} 29... Rxc2 {[%clk 0:01:13]} 30. Rxc2 {[%clk 0:01:40.2]} 30...
Bf6 {[%clk 0:01:10.9]} 31. Rc4 {[%clk 0:01:38.1]} 31... Bc3 {[%clk 0:01:09.9]}
32. Kf2 {[%clk 0:01:35.9]} 32... Qd8 {[%clk 0:01:07.7]} 33. Ke2 {[%clk
0:01:36.1]} 33... h6 {[%clk 0:00:59.1]} 34. f4 {[%clk 0:01:34.3]} 34... Bxd2
{[%clk 0:00:56.1]} 35. Bxd2 {[%clk 0:01:33.9]} 35... fxe4 {[%clk 0:00:56.6]} 36.
Rxe4 {[%clk 0:01:33.1]} 36... Qd5 {[%clk 0:00:56.3]} 37. Rxb4 {[%clk 0:01:31.7]}
37... Qg2+ {[%clk 0:00:55.5]} 38. Ke3 {[%clk 0:01:30.8]} 38... Qxh2 {[%clk
0:00:54.3]} 39. Be1 {[%clk 0:01:30.6]} 39... Qg1+ {[%clk 0:00:53.5]} 40. Ke2
{[%clk 0:01:29.1]} 40... Qg2+ {[%clk 0:00:52.9]} 41. Bf2 {[%clk 0:01:29.1]}
41... Qd5 {[%clk 0:00:52]} 42. Rb6 {[%clk 0:01:28.2]} 42... Qe4+ {[%clk
0:00:46.1]} 43. Be3 {[%clk 0:01:27.9]} 43... e5 {[%clk 0:00:42.9]} 44. fxe5
{[%clk 0:01:24.2]} 44... Qxe5 {[%clk 0:00:42.3]} 45. Rxa6 {[%clk 0:01:21]} 45...
Qxg3 {[%clk 0:00:37.6]} 46. Rb6 {[%clk 0:01:21.4]} 46... h5 {[%clk 0:00:36.2]}
47. a5 {[%clk 0:01:21.6]} 47... Qg4+ {[%clk 0:00:34.1]} 48. Kd2 {[%clk
0:01:20.5]} 48... Qg2+ {[%clk 0:00:33.5]} 49. Kd3 {[%clk 0:01:20.5]} 49... Qd5+
{[%clk 0:00:33.3]} 50. Bd4 {[%clk 0:01:21]} 50... Qxa5 {[%clk 0:00:31.5]} 51.
Rg6 {[%clk 0:01:19.1]} 51... Qf5+ {[%clk 0:00:30.9]} 0-1

[Event "Early-Titled-Tuesday-Blitz-January-23-2024"]
[Site "Chess.com"]
[Date "2024.01.23"]
[Round "6"]
[White "Juicy_Fork"]
[Black "doctorcristian"]
[Result "0-1"]
[WhiteElo "2437"]
[BlackElo "2618"]
[TimeControl "180+1"]
[EndTime "9:05:22 PST"]
[Termination "doctorcristian won on time"]

1. e4 {[%clk 0:02:56.4]} 1... c6 {[%clk 0:02:57.9]} 2. Nc3 {[%clk 0:02:50.4]}
2... d5 {[%clk 0:02:58.8]} 3. Nf3 {[%clk 0:02:47.5]} 3... Bg4 {[%clk 0:02:58.8]}
4. h3 {[%clk 0:02:47.9]} 4... Bxf3 {[%clk 0:02:59.2]} 5. Qxf3 {[%clk 0:02:48.8]}
5... e6 {[%clk 0:03:00]} 6. Be2 {[%clk 0:02:49.5]} 6... Nf6 {[%clk 0:02:58.8]}
7. O-O {[%clk 0:02:46]} 7... Nbd7 {[%clk 0:02:54.5]} 8. d4 {[%clk 0:02:39.5]}
8... g6 {[%clk 0:02:44.8]} 9. e5 {[%clk 0:02:28.1]} 9... Nh5 {[%clk 0:02:43.7]}
10. g4 {[%clk 0:02:15.3]} 10... Ng7 {[%clk 0:02:42.3]} 11. Qg3 {[%clk
0:02:15.8]} 11... Be7 {[%clk 0:02:39.8]} 12. Bh6 {[%clk 0:02:09.9]} 12... Rg8
{[%clk 0:02:36.4]} 13. f4 {[%clk 0:02:08.8]} 13... Qb6 {[%clk 0:02:36.6]} 14.
Rad1 {[%clk 0:01:59.4]} 14... O-O-O {[%clk 0:02:36]} 15. Qd3 {[%clk 0:01:38.2]}
15... c5 {[%clk 0:02:25.9]} 16. Na4 {[%clk 0:01:30.6]} 16... Qc6 {[%clk
0:02:26]} 17. Nxc5 {[%clk 0:01:27.1]} 17... Nxc5 {[%clk 0:02:23.2]} 18. dxc5
{[%clk 0:01:24.4]} 18... Bxc5+ {[%clk 0:02:23.6]} 19. Kh2 {[%clk 0:01:24.7]}
19... Kb8 {[%clk 0:02:21.5]} 20. Bg5 {[%clk 0:01:15.5]} 20... Rc8 {[%clk
0:02:18]} 21. c3 {[%clk 0:01:16]} 21... Bb6 {[%clk 0:02:11.4]} 22. a4 {[%clk
0:01:09.1]} 22... h5 {[%clk 0:01:58.1]} 23. gxh5 {[%clk 0:01:01.9]} 23... gxh5
{[%clk 0:01:57.5]} 24. Qb5 {[%clk 0:00:44.6]} 24... Qc7 {[%clk 0:01:51.3]} 25.
Bd3 {[%clk 0:00:35.7]} 25... Ne8 {[%clk 0:01:40]} 26. h4 {[%clk 0:00:24.2]}
26... a6 {[%clk 0:01:30.9]} 27. Qb3 {[%clk 0:00:22.2]} 27... Ka8 {[%clk
0:01:24]} 28. a5 {[%clk 0:00:19.9]} 28... Bc5 {[%clk 0:01:19.2]} 29. Qc2 {[%clk
0:00:19.4]} 29... Be7 {[%clk 0:01:14.8]} 30. Qe2 {[%clk 0:00:18.4]} 30... f6
{[%clk 0:01:12.6]} 31. exf6 {[%clk 0:00:16.5]} 31... Nxf6 {[%clk 0:01:13]} 32.
Qxe6 {[%clk 0:00:10.7]} 32... Ng4+ {[%clk 0:01:12.9]} 33. Kh3 {[%clk 0:00:09]}
33... Bxg5 {[%clk 0:01:12.4]} 34. hxg5 {[%clk 0:00:09.4]} 34... Rxg5 {[%clk
0:01:12.7]} 35. Qxc8+ {[%clk 0:00:02.3]} 35... Qxc8 {[%clk 0:01:11.9]} 36. fxg5
{[%clk 0:00:03.2]} 36... Ne3+ {[%clk 0:01:12]} 0-1

[Event "Early-Titled-Tuesday-Blitz-January-23-2024"]
[Site "Chess.com"]
[Date "2024.01.23"]
[Round "6"]
[White "KVAIDAN"]
[Black "OneTrickPony_82"]
[Result "1-0"]
[WhiteElo "2369"]
[BlackElo "2509"]
[TimeControl "180+1"]
[EndTime "9:05:24 PST"]
[Termination "KVAIDAN won by resignation"]

1. f4 {[%clk 0:03:00.9]} 1... d5 {[%clk 0:02:57.9]} 2. Nf3 {[%clk 0:03:00.9]}
2... Bf5 {[%clk 0:02:56.6]} 3. e3 {[%clk 0:03:00.6]} 3... e6 {[%clk 0:02:56.1]}
4. Be2 {[%clk 0:02:57.8]} 4... Nf6 {[%clk 0:02:56.1]} 5. O-O {[%clk 0:02:57.9]}
5... Be7 {[%clk 0:02:55.4]} 6. b3 {[%clk 0:02:52.1]} 6... O-O {[%clk 0:02:55.3]}
7. Bb2 {[%clk 0:02:52.6]} 7... c5 {[%clk 0:02:55.7]} 8. Ne5 {[%clk 0:02:52.9]}
8... Nfd7 {[%clk 0:02:50.5]} 9. g4 {[%clk 0:02:44]} 9... Nxe5 {[%clk 0:02:49.3]}
10. gxf5 {[%clk 0:02:32.3]} 10... Nec6 {[%clk 0:02:45]} 11. fxe6 {[%clk
0:02:32.2]} 11... fxe6 {[%clk 0:02:44]} 12. Bg4 {[%clk 0:02:32.5]} 12... Bf6
{[%clk 0:02:14.9]} 13. Bxe6+ {[%clk 0:02:31.9]} 13... Kh8 {[%clk 0:02:15.3]} 14.
Nc3 {[%clk 0:02:28.1]} 14... d4 {[%clk 0:02:05]} 15. Ne4 {[%clk 0:02:22.7]}
15... Qe7 {[%clk 0:01:58.5]} 16. f5 {[%clk 0:02:20.1]} 16... Be5 {[%clk
0:01:52.9]} 17. Qg4 {[%clk 0:02:13.3]} 17... Nd7 {[%clk 0:01:47.6]} 18. Bxd7
{[%clk 0:02:08.1]} 18... Qxd7 {[%clk 0:01:45.7]} 19. Nxc5 {[%clk 0:02:08.2]}
19... Bxh2+ {[%clk 0:01:41.6]} 20. Kxh2 {[%clk 0:01:58.9]} 20... Qd6+ {[%clk
0:01:41.8]} 21. Kg1 {[%clk 0:01:52]} 21... Qxc5 {[%clk 0:01:41.7]} 22. exd4
{[%clk 0:01:52.4]} 22... Qxc2 {[%clk 0:01:40.8]} 23. Bc3 {[%clk 0:01:51.3]}
23... Rae8 {[%clk 0:01:30.9]} 24. Rae1 {[%clk 0:01:36.2]} 24... h6 {[%clk
0:00:32.8]} 25. d5 {[%clk 0:01:35.2]} 25... Ne5 {[%clk 0:00:25.2]} 26. Rxe5
{[%clk 0:01:32.3]} 26... Rxe5 {[%clk 0:00:17.1]} 27. Bxe5 {[%clk 0:01:31.7]}
27... Rf7 {[%clk 0:00:17.8]} 28. Qg6 {[%clk 0:01:27.4]} 28... Qc5+ {[%clk
0:00:17.9]} 29. d4 {[%clk 0:01:27]} 29... Qxd5 {[%clk 0:00:18.4]} 30. Qxh6+
{[%clk 0:01:20.4]} 30... Kg8 {[%clk 0:00:18]} 31. Qe6 {[%clk 0:01:21]} 31... Qe4
{[%clk 0:00:12.5]} 32. Qe8+ {[%clk 0:01:17.6]} 32... Kh7 {[%clk 0:00:12.5]} 33.
Qxf7 {[%clk 0:01:14.9]} 33... Qg4+ {[%clk 0:00:12.7]} 34. Kh2 {[%clk 0:01:12.2]}
34... Qe2+ {[%clk 0:00:08.7]} 35. Kg3 {[%clk 0:01:05.3]} 35... Qd3+ {[%clk
0:00:02.2]} 36. Rf3 {[%clk 0:01:04.9]} 1-0

[Event "Early-Titled-Tuesday-Blitz-January-23-2024"]
[Site "Chess.com"]
[Date "2024.01.23"]
[Round "6"]
[White "Kunalm64"]
[Black "TitarovVasiliYouTube"]
[Result "1-0"]
[WhiteElo "2491"]
[BlackElo "2532"]
[TimeControl "180+1"]
[EndTime "9:05:26 PST"]
[Termination "Kunalm64 won on time"]

1. e4 {[%clk 0:03:00]} 1... c5 {[%clk 0:02:23.9]} 2. Nf3 {[%clk 0:02:58.9]} 2...
Nf6 {[%clk 0:02:24.3]} 3. e5 {[%clk 0:02:57.8]} 3... Nd5 {[%clk 0:02:23.7]} 4.
Nc3 {[%clk 0:02:57.7]} 4... Nxc3 {[%clk 0:02:23.1]} 5. dxc3 {[%clk 0:02:57.8]}
5... Nc6 {[%clk 0:02:23.2]} 6. Be2 {[%clk 0:02:48.5]} 6... Qc7 {[%clk
0:02:19.8]} 7. O-O {[%clk 0:02:46.8]} 7... Nxe5 {[%clk 0:02:17.6]} 8. Nxe5
{[%clk 0:02:45.9]} 8... Qxe5 {[%clk 0:02:18.5]} 9. Re1 {[%clk 0:02:40.3]} 9...
Qc7 {[%clk 0:02:17.6]} 10. g3 {[%clk 0:02:27.6]} 10... d6 {[%clk 0:02:17.4]} 11.
Bf3 {[%clk 0:02:21.7]} 11... Bd7 {[%clk 0:02:16.3]} 12. Bf4 {[%clk 0:02:19.7]}
12... O-O-O {[%clk 0:02:13.6]} 13. a4 {[%clk 0:02:15.8]} 13... Bc6 {[%clk
0:02:01.4]} 14. a5 {[%clk 0:02:14.9]} 14... e5 {[%clk 0:01:35.2]} 15. Be3 {[%clk
0:02:04.1]} 15... f5 {[%clk 0:01:31.4]} 16. Bd5 {[%clk 0:02:03.6]} 16... Kb8
{[%clk 0:01:23.2]} 17. b4 {[%clk 0:02:00.1]} 17... Be7 {[%clk 0:01:00.5]} 18.
Rb1 {[%clk 0:01:56.2]} 18... Rhf8 {[%clk 0:00:31.3]} 19. c4 {[%clk 0:01:50.3]}
19... f4 {[%clk 0:00:26]} 20. Bc1 {[%clk 0:01:47.4]} 20... fxg3 {[%clk
0:00:22.1]} 21. hxg3 {[%clk 0:01:45.2]} 21... Bxd5 {[%clk 0:00:22.1]} 22. Qxd5
{[%clk 0:01:43.8]} 22... cxb4 {[%clk 0:00:22.4]} 23. Be3 {[%clk 0:01:41.6]}
23... Qc6 {[%clk 0:00:19]} 24. Rxb4 {[%clk 0:01:17.9]} 24... Qxd5 {[%clk
0:00:18.7]} 25. cxd5 {[%clk 0:01:18]} 25... Rd7 {[%clk 0:00:16.9]} 26. c4 {[%clk
0:01:10.1]} 26... Bd8 {[%clk 0:00:15.4]} 27. Ra1 {[%clk 0:01:06.2]} 27... Ka8
{[%clk 0:00:12.3]} 28. Kf1 {[%clk 0:01:03.7]} 1-0

[Event "Early-Titled-Tuesday-Blitz-January-23-2024"]
[Site "Chess.com"]
[Date "2024.01.23"]
[Round "6"]
[White "Yeritsyaan"]
[Black "koncheto"]
[Result "1-0"]
[WhiteElo "2653"]
[BlackElo "2568"]
[TimeControl "180+1"]
[EndTime "9:05:27 PST"]
[Termination "Yeritsyaan won by resignation"]

1. c4 {[%clk 0:02:51.8]} 1... Nf6 {[%clk 0:02:52.7]} 2. Nc3 {[%clk 0:02:51.2]}
2... e6 {[%clk 0:02:51]} 3. d3 {[%clk 0:02:49.5]} 3... d5 {[%clk 0:02:49.8]} 4.
e4 {[%clk 0:02:45.4]} 4... dxe4 {[%clk 0:02:46.6]} 5. dxe4 {[%clk 0:02:43.5]}
5... Qxd1+ {[%clk 0:02:45.4]} 6. Kxd1 {[%clk 0:02:44.4]} 6... b6 {[%clk
0:02:44.5]} 7. Bd3 {[%clk 0:02:43.7]} 7... Bb7 {[%clk 0:02:44.8]} 8. f3 {[%clk
0:02:40.2]} 8... Nbd7 {[%clk 0:02:44.8]} 9. Be3 {[%clk 0:02:35.9]} 9... O-O-O
{[%clk 0:02:44.7]} 10. Kc2 {[%clk 0:02:35.8]} 10... Bc5 {[%clk 0:02:41.1]} 11.
Bxc5 {[%clk 0:02:34.7]} 11... Nxc5 {[%clk 0:02:41.2]} 12. Rd1 {[%clk 0:02:31.4]}
12... e5 {[%clk 0:02:32.8]} 13. Nd5 {[%clk 0:02:25.1]} 13... Nfd7 {[%clk
0:02:02]} 14. Ne2 {[%clk 0:02:13.5]} 14... c6 {[%clk 0:01:51.7]} 15. Ne3 {[%clk
0:02:10.3]} 15... Ne6 {[%clk 0:01:50.2]} 16. b4 {[%clk 0:02:06.4]} 16... c5
{[%clk 0:01:28.3]} 17. a3 {[%clk 0:02:06]} 17... Nd4+ {[%clk 0:01:26.6]} 18.
Nxd4 {[%clk 0:02:03.8]} 18... cxd4 {[%clk 0:01:23.9]} 19. Nf5 {[%clk 0:02:02.4]}
19... Kc7 {[%clk 0:01:13.1]} 20. h4 {[%clk 0:01:59.2]} 20... g6 {[%clk 0:01:10]}
21. Nh6 {[%clk 0:01:53.1]} 21... Rdf8 {[%clk 0:01:04.2]} 22. g4 {[%clk 0:01:53]}
22... Nf6 {[%clk 0:01:00.4]} 23. Kb3 {[%clk 0:01:48.4]} 23... Ng8 {[%clk
0:00:59.2]} 24. Nxg8 {[%clk 0:01:45.9]} 24... Rhxg8 {[%clk 0:00:57.9]} 25. Rde1
{[%clk 0:01:35.8]} 25... f6 {[%clk 0:00:36.2]} 26. Rhg1 {[%clk 0:01:33.4]} 26...
h6 {[%clk 0:00:31]} 27. Rc1 {[%clk 0:01:18.8]} 27... Kd6 {[%clk 0:00:16.5]} 28.
c5+ {[%clk 0:01:17.7]} 28... bxc5 {[%clk 0:00:16.8]} 29. bxc5+ {[%clk
0:01:17.8]} 29... Kc7 {[%clk 0:00:12.3]} 30. c6 {[%clk 0:01:15.2]} 30... Bc8
{[%clk 0:00:02.6]} 31. Bc4 {[%clk 0:01:12.8]} 31... Rg7 {[%clk 0:00:03.2]} 32.
Bd5 {[%clk 0:01:11.6]} 32... Re7 {[%clk 0:00:03.7]} 33. Kb4 {[%clk 0:01:09.9]}
33... Be6 {[%clk 0:00:04.2]} 34. Kc5 {[%clk 0:01:10.5]} 34... Rb8 {[%clk
0:00:04]} 35. Rb1 {[%clk 0:01:10.5]} 35... Bxd5 {[%clk 0:00:02.9]} 36. exd5
{[%clk 0:01:06.8]} 36... Rxb1 {[%clk 0:00:01.9]} 37. Rxb1 {[%clk 0:01:07.7]} 1-0

[Event "Early-Titled-Tuesday-Blitz-January-23-2024"]
[Site "Chess.com"]
[Date "2024.01.23"]
[Round "6"]
[White "Zq1"]
[Black "Saraisitave"]
[Result "1-0"]
[WhiteElo "2524"]
[BlackElo "2335"]
[TimeControl "180+1"]
[EndTime "9:05:28 PST"]
[Termination "Zq1 won on time"]

1. d4 {[%clk 0:02:58.2]} 1... d5 {[%clk 0:02:58.8]} 2. c4 {[%clk 0:02:57.6]}
2... c6 {[%clk 0:02:57.1]} 3. e3 {[%clk 0:02:56.5]} 3... Nf6 {[%clk 0:02:56.3]}
4. Nc3 {[%clk 0:02:55.8]} 4... g6 {[%clk 0:02:56.6]} 5. Nf3 {[%clk 0:02:54.9]}
5... Bg7 {[%clk 0:02:56.4]} 6. Be2 {[%clk 0:02:55]} 6... O-O {[%clk 0:02:55.4]}
7. O-O {[%clk 0:02:52.7]} 7... Bf5 {[%clk 0:02:44.3]} 8. b4 {[%clk 0:02:49.7]}
8... Ne4 {[%clk 0:02:06.8]} 9. Bb2 {[%clk 0:02:48.8]} 9... Nd7 {[%clk
0:02:00.8]} 10. a4 {[%clk 0:02:28.8]} 10... e6 {[%clk 0:01:38.3]} 11. b5 {[%clk
0:02:18.8]} 11... Rc8 {[%clk 0:01:35.1]} 12. Qb3 {[%clk 0:01:59.6]} 12... Bg4
{[%clk 0:01:14.6]} 13. Rfd1 {[%clk 0:01:53]} 13... Bxf3 {[%clk 0:01:10.3]} 14.
Bxf3 {[%clk 0:01:45.3]} 14... f5 {[%clk 0:01:10.5]} 15. a5 {[%clk 0:01:29.4]}
15... Kh8 {[%clk 0:00:59.4]} 16. a6 {[%clk 0:01:26.9]} 16... dxc4 {[%clk
0:00:59.5]} 17. Qxc4 {[%clk 0:01:25]} 17... cxb5 {[%clk 0:00:59.7]} 18. Qb3
{[%clk 0:01:24.7]} 18... Nxc3 {[%clk 0:00:55.5]} 19. Bxc3 {[%clk 0:01:22.7]}
19... bxa6 {[%clk 0:00:54.8]} 20. Rxa6 {[%clk 0:01:16.7]} 20... e5 {[%clk
0:00:54.4]} 21. Rxa7 {[%clk 0:01:07.2]} 21... e4 {[%clk 0:00:52.1]} 22. Be2
{[%clk 0:01:06.1]} 22... Nf6 {[%clk 0:00:31.3]} 23. d5 {[%clk 0:00:52.8]} 23...
Qb6 {[%clk 0:00:08.8]} 24. Bd4 {[%clk 0:00:49.4]} 24... Qd6 {[%clk 0:00:07.4]}
25. Qb2 {[%clk 0:00:41.4]} 25... b4 {[%clk 0:00:01.8]} 26. h3 {[%clk 0:00:38.1]}
26... Rc7 {[%clk 0:00:02]} 27. Be5 {[%clk 0:00:36.7]} 1-0

[Event "Early-Titled-Tuesday-Blitz-January-23-2024"]
[Site "Chess.com"]
[Date "2024.01.23"]
[Round "6"]
[White "MaxLeto"]
[Black "maurovargas01"]
[Result "1-0"]
[WhiteElo "2298"]
[BlackElo "1851"]
[TimeControl "180+1"]
[EndTime "9:05:29 PST"]
[Termination "MaxLeto won by checkmate"]

1. g4 {[%clk 0:02:22.6]} 1... d6 {[%clk 0:02:45.8]} 2. Bg2 {[%clk 0:02:21]} 2...
c6 {[%clk 0:02:34.3]} 3. g5 {[%clk 0:02:18.2]} 3... e5 {[%clk 0:02:33]} 4. d4
{[%clk 0:02:16.6]} 4... exd4 {[%clk 0:02:18.9]} 5. Qxd4 {[%clk 0:02:08]} 5...
Be7 {[%clk 0:02:18.5]} 6. Qxg7 {[%clk 0:01:31.7]} 6... Qa5+ {[%clk 0:01:54.2]}
7. Bd2 {[%clk 0:01:26.5]} 7... Qe5 {[%clk 0:01:53.3]} 8. Bc3 {[%clk 0:01:19.1]}
8... Qxg5 {[%clk 0:01:43.2]} 9. Qxg5 {[%clk 0:01:16]} 9... Bxg5 {[%clk
0:01:38.6]} 10. Bxh8 {[%clk 0:01:16.9]} 10... f6 {[%clk 0:01:36.8]} 11. Nf3
{[%clk 0:01:12.8]} 11... Bh6 {[%clk 0:01:27.7]} 12. Nbd2 {[%clk 0:01:06.1]}
12... Bf5 {[%clk 0:01:24.5]} 13. O-O-O {[%clk 0:00:52.5]} 13... d5 {[%clk
0:01:21.9]} 14. Rhg1 {[%clk 0:00:48.2]} 14... Bg6 {[%clk 0:01:20.3]} 15. Nh4
{[%clk 0:00:44.2]} 15... Kf7 {[%clk 0:01:19.6]} 16. Nxg6 {[%clk 0:00:36.2]}
16... hxg6 {[%clk 0:01:18.4]} 17. e4 {[%clk 0:00:37.1]} 17... dxe4 {[%clk
0:01:15.2]} 18. Bxe4 {[%clk 0:00:38]} 18... Ne7 {[%clk 0:01:11.4]} 19. Kb1
{[%clk 0:00:24.9]} 19... Nd7 {[%clk 0:01:10.1]} 20. Nc4 {[%clk 0:00:23.4]} 20...
Rxh8 {[%clk 0:01:01.2]} 21. Rxd7 {[%clk 0:00:22.2]} 21... Ke6 {[%clk 0:00:55.2]}
22. Rxb7 {[%clk 0:00:21.5]} 22... f5 {[%clk 0:00:52.8]} 23. Bd3 {[%clk
0:00:18.5]} 23... Bf4 {[%clk 0:00:47.2]} 24. Re1+ {[%clk 0:00:14.9]} 24... Kd5
{[%clk 0:00:35.7]} 25. Rexe7 {[%clk 0:00:15.8]} 25... Rxh2 {[%clk 0:00:33.4]}
26. b4 {[%clk 0:00:14.9]} 26... Bg5 {[%clk 0:00:29.6]} 27. Rbd7# {[%clk
0:00:13.7]} 1-0

[Event "Early-Titled-Tuesday-Blitz-January-23-2024"]
[Site "Chess.com"]
[Date "2024.01.23"]
[Round "6"]
[White "brm72"]
[Black "mbojan"]
[Result "0-1"]
[WhiteElo "2698"]
[BlackElo "2895"]
[TimeControl "180+1"]
[EndTime "9:05:32 PST"]
[Termination "mbojan won by resignation"]

1. e4 {[%clk 0:03:00.9]} 1... a6 {[%clk 0:03:00.1]} 2. d4 {[%clk 0:03:00.2]}
2... e6 {[%clk 0:03:00.3]} 3. Bd3 {[%clk 0:02:59.9]} 3... d5 {[%clk 0:03:00.9]}
4. e5 {[%clk 0:02:58.5]} 4... c5 {[%clk 0:03:01.2]} 5. c3 {[%clk 0:02:58.7]}
5... Bd7 {[%clk 0:03:01.9]} 6. Nf3 {[%clk 0:02:55.4]} 6... cxd4 {[%clk
0:03:02.1]} 7. cxd4 {[%clk 0:02:52.8]} 7... Bb5 {[%clk 0:03:02.4]} 8. Nc3 {[%clk
0:02:45.4]} 8... Bxd3 {[%clk 0:03:02.2]} 9. Qxd3 {[%clk 0:02:46.3]} 9... Nc6
{[%clk 0:03:02.9]} 10. O-O {[%clk 0:02:45.9]} 10... Nge7 {[%clk 0:03:03.4]} 11.
a3 {[%clk 0:02:42.2]} 11... Nf5 {[%clk 0:03:03.1]} 12. Be3 {[%clk 0:02:38.2]}
12... Be7 {[%clk 0:03:02.1]} 13. Rac1 {[%clk 0:02:31.2]} 13... O-O {[%clk
0:03:02.2]} 14. g4 {[%clk 0:02:31.1]} 14... Nxe3 {[%clk 0:02:50.2]} 15. fxe3
{[%clk 0:02:14]} 15... Rc8 {[%clk 0:02:50.7]} 16. b4 {[%clk 0:02:04]} 16... f6
{[%clk 0:02:36.1]} 17. exf6 {[%clk 0:01:59.7]} 17... Rxf6 {[%clk 0:02:37]} 18.
Na4 {[%clk 0:01:58.8]} 18... Qd6 {[%clk 0:02:15.9]} 19. Kg2 {[%clk 0:01:52]}
19... Rcf8 {[%clk 0:02:11]} 20. Nc5 {[%clk 0:01:46.6]} 20... e5 {[%clk
0:01:58.6]} 21. Nxb7 {[%clk 0:01:25.2]} 21... Qd7 {[%clk 0:01:55.2]} 22. dxe5
{[%clk 0:01:13.1]} 22... Rxf3 {[%clk 0:01:37.4]} 23. Rxf3 {[%clk 0:01:06.9]}
23... Rxf3 {[%clk 0:01:38.3]} 24. Nc5 {[%clk 0:01:05.2]} 24... Qxg4+ {[%clk
0:01:35.7]} 25. Kh1 {[%clk 0:01:04.3]} 25... Nxe5 {[%clk 0:01:15.9]} 26. Qxd5+
{[%clk 0:01:02.1]} 26... Nf7 {[%clk 0:01:16.3]} 27. Ne6 {[%clk 0:00:43.5]} 27...
h6 {[%clk 0:01:16.4]} 28. Rg1 {[%clk 0:00:30.3]} 28... Qf5 {[%clk 0:01:16.2]}
29. Rxg7+ {[%clk 0:00:28.1]} 29... Kh8 {[%clk 0:01:16.6]} 30. Qa8+ {[%clk
0:00:28.7]} 30... Bd8 {[%clk 0:00:50.9]} 31. Nxd8 {[%clk 0:00:03.6]} 31... Kxg7
{[%clk 0:00:43.2]} 0-1